[Event "Live Chess"]
[Site "Chess.com"]
[Date "2024.06.02"]
[Round "-"]
[White "beltmanjb"]
[Black "ivan_1968"]
[Result "1-0"]
[WhiteElo "1698"]
[BlackElo "1811"]
[TimeControl "300"]
[EndTime "7:36:18 PDT"]
[Termination "beltmanjb won by checkmate"]

1. d4 {[%clk 0:04:58.7]} 1... Nf6 {[%clk 0:04:58.4]} 2. c4 {[%clk 0:04:57.4]}
2... e6 {[%clk 0:04:57.6]} 3. g3 {[%clk 0:04:56.1]} 3... Bb4+ {[%clk 0:04:56.8]}
4. Nd2 {[%clk 0:04:54.3]} 4... d5 {[%clk 0:04:38.7]} 5. Bg2 {[%clk 0:04:43.7]}
5... O-O {[%clk 0:04:36.3]} 6. Nf3 {[%clk 0:04:42.6]} 6... dxc4 {[%clk
0:04:34.8]} 7. O-O {[%clk 0:04:40.5]} 7... b5 {[%clk 0:04:18.9]} 8. b3 {[%clk
0:04:35.4]} 8... c3 {[%clk 0:03:28.3]} 9. Nb1 {[%clk 0:04:33.5]} 9... Bb7 {[%clk
0:03:26.6]} 10. Qc2 {[%clk 0:04:29.6]} 10... Be4 {[%clk 0:03:24]} 11. Qd1 {[%clk
0:04:20.5]} 11... c5 {[%clk 0:03:11.8]} 12. Ng5 {[%clk 0:04:10.9]} 12... Bxg2
{[%clk 0:03:06.7]} 13. Kxg2 {[%clk 0:04:09.4]} 13... Qxd4 {[%clk 0:03:01.3]} 14.
Na3 {[%clk 0:03:43.4]} 14... a6 {[%clk 0:02:54.4]} 15. Nc2 {[%clk 0:03:34.5]}
15... Qd5+ {[%clk 0:02:52.1]} 16. Kg1 {[%clk 0:03:29.9]} 16... Nc6 {[%clk
0:02:49.6]} 17. Be3 {[%clk 0:03:15.2]} 17... Rfd8 {[%clk 0:02:45.4]} 18. a3
{[%clk 0:02:54.3]} 18... Ba5 {[%clk 0:02:43.3]} 19. b4 {[%clk 0:02:40.1]} 19...
Bb6 {[%clk 0:02:37.3]} 20. Qxd5 {[%clk 0:02:20.9]} 20... Rxd5 {[%clk 0:02:32.3]}
21. Rfd1 {[%clk 0:02:08.8]} 21... Nd4 {[%clk 0:02:28.8]} 22. bxc5 {[%clk
0:01:55.3]} 22... Bxc5 {[%clk 0:02:26.6]} 23. Bxd4 {[%clk 0:01:41.4]} 23... Rad8
{[%clk 0:02:21.5]} 24. Nf3 {[%clk 0:01:35.2]} 24... Bxd4 {[%clk 0:02:16.5]} 25.
Ncxd4 {[%clk 0:01:23]} 25... e5 {[%clk 0:02:14]} 26. e4 {[%clk 0:01:21.7]} 26...
Rxd4 {[%clk 0:02:10.5]} 27. Nxd4 {[%clk 0:01:19.3]} 27... exd4 {[%clk
0:02:09.7]} 28. f3 {[%clk 0:01:07.8]} 28... d3 {[%clk 0:02:00.4]} 29. Rac1
{[%clk 0:00:55.2]} 29... Rd4 {[%clk 0:01:08]} 30. Rxc3 {[%clk 0:00:50.5]} 30...
g6 {[%clk 0:01:07]} 31. Rcxd3 {[%clk 0:00:47.1]} 31... Ra4 {[%clk 0:01:02.8]}
32. g4 {[%clk 0:00:33.8]} 32... h6 {[%clk 0:01:00.4]} 33. e5 {[%clk 0:00:27.3]}
33... Nh7 {[%clk 0:00:56.9]} 34. Rd8+ {[%clk 0:00:24.7]} 34... Kg7 {[%clk
0:00:54]} 35. R1d3 {[%clk 0:00:23.1]} 35... Nf8 {[%clk 0:00:48.1]} 36. Kf2
{[%clk 0:00:18.3]} 36... Ne6 {[%clk 0:00:47.5]} 37. Ra8 {[%clk 0:00:12.9]} 37...
Nf4 {[%clk 0:00:41.7]} 38. Rdd8 {[%clk 0:00:07.6]} 38... h5 {[%clk 0:00:31.5]}
39. h4 {[%clk 0:00:06.7]} 39... g5 {[%clk 0:00:24.3]} 40. Rg8+ {[%clk 0:00:05]}
40... Kh6 {[%clk 0:00:19.2]} 41. Rh8+ {[%clk 0:00:04.5]} 41... Kg6 {[%clk
0:00:14.8]} 42. Rag8# {[%clk 0:00:04.1]} 1-0

[Event "Live Chess"]
[Site "Chess.com"]
[Date "2024.06.02"]
[Round "-"]
[White "elephantgerrald"]
[Black "GEMdzq"]
[Result "0-1"]
[WhiteElo "852"]
[BlackElo "2269"]
[TimeControl "300"]
[EndTime "7:36:18 PDT"]
[Termination "GEMdzq won by checkmate"]

1. e4 {[%clk 0:04:55.2]} 1... d6 {[%clk 0:04:58.9]} 2. d4 {[%clk 0:04:53.6]}
2... Nf6 {[%clk 0:04:58.5]} 3. Nc3 {[%clk 0:04:51]} 3... g6 {[%clk 0:04:58]} 4.
Bg5 {[%clk 0:04:46.5]} 4... h6 {[%clk 0:04:56.3]} 5. Bxf6 {[%clk 0:04:45]} 5...
exf6 {[%clk 0:04:56.2]} 6. Qe2 {[%clk 0:04:32.8]} 6... Bg7 {[%clk 0:04:53.8]} 7.
Qc4 {[%clk 0:04:30.5]} 7... O-O {[%clk 0:04:52.3]} 8. O-O-O {[%clk 0:04:26]}
8... Nc6 {[%clk 0:04:50]} 9. d5 {[%clk 0:04:23.7]} 9... Ne5 {[%clk 0:04:48.7]}
10. Qe2 {[%clk 0:04:21.5]} 10... f5 {[%clk 0:04:48]} 11. exf5 {[%clk 0:04:20.1]}
11... Bxf5 {[%clk 0:04:46.5]} 12. g3 {[%clk 0:04:14]} 12... Re8 {[%clk 0:04:43]}
13. Qb5 {[%clk 0:03:52.4]} 13... a6 {[%clk 0:04:34.1]} 14. Qxb7 {[%clk
0:03:50.2]} 14... Rb8 {[%clk 0:04:33.3]} 15. Qxa6 {[%clk 0:03:46]} 15... Ng4
{[%clk 0:04:32.4]} 16. Rd2 {[%clk 0:03:38.9]} 16... Re1+ {[%clk 0:04:29.9]} 17.
Nd1 {[%clk 0:03:35]} 17... Bxb2+ {[%clk 0:04:27.5]} 18. Kb1 {[%clk 0:03:29.6]}
18... Bc3+ {[%clk 0:04:27.3]} 19. Kc1 {[%clk 0:03:25.7]} 19... Rxf1 {[%clk
0:04:20.2]} 20. Qxf1 {[%clk 0:03:19.7]} 20... Bxd2+ {[%clk 0:04:18.3]} 21. Kxd2
{[%clk 0:03:17.9]} 21... Qf6 {[%clk 0:04:09.7]} 22. Ke1 {[%clk 0:02:58.5]} 22...
Re8+ {[%clk 0:04:02.4]} 23. Ne2 {[%clk 0:02:55.8]} 23... Bxc2 {[%clk 0:04:00.4]}
24. Kd2 {[%clk 0:02:50.8]} 24... Bxd1 {[%clk 0:03:54.7]} 25. Qxd1 {[%clk
0:02:49.1]} 25... Nxf2 {[%clk 0:03:53.1]} 26. Qa4 {[%clk 0:02:44.7]} 26... Qb2+
{[%clk 0:03:50.2]} 27. Ke1 {[%clk 0:02:36.7]} 27... Qxe2# {[%clk 0:03:48.5]} 0-1

[Event "Live Chess"]
[Site "Chess.com"]
[Date "2024.06.02"]
[Round "-"]
[White "KeithArkell"]
[Black "lyricalschemes"]
[Result "0-1"]
[WhiteElo "2400"]
[BlackElo "2248"]
[TimeControl "300"]
[EndTime "7:36:20 PDT"]
[Termination "lyricalschemes won by resignation"]

1. d4 {[%clk 0:04:55.9]} 1... Nf6 {[%clk 0:04:58.9]} 2. Nf3 {[%clk 0:04:55]}
2... e6 {[%clk 0:04:58]} 3. c4 {[%clk 0:04:54.3]} 3... Bb4+ {[%clk 0:04:57.3]}
4. Bd2 {[%clk 0:04:53.3]} 4... Qe7 {[%clk 0:04:56.7]} 5. g3 {[%clk 0:04:52.8]}
5... O-O {[%clk 0:04:55.3]} 6. Bg2 {[%clk 0:04:51.9]} 6... Bxd2+ {[%clk
0:04:54.7]} 7. Qxd2 {[%clk 0:04:51]} 7... d5 {[%clk 0:04:52]} 8. cxd5 {[%clk
0:04:48.8]} 8... exd5 {[%clk 0:04:51.1]} 9. Nc3 {[%clk 0:04:48]} 9... b6 {[%clk
0:04:48.9]} 10. O-O {[%clk 0:04:47]} 10... Bb7 {[%clk 0:04:48.4]} 11. Rac1
{[%clk 0:04:43.2]} 11... Na6 {[%clk 0:04:44]} 12. a3 {[%clk 0:04:39.7]} 12...
Rad8 {[%clk 0:04:41.6]} 13. b4 {[%clk 0:04:38.9]} 13... Ne4 {[%clk 0:04:39.6]}
14. Nxe4 {[%clk 0:04:36.7]} 14... dxe4 {[%clk 0:04:38.1]} 15. Ne5 {[%clk
0:04:36.1]} 15... Qxe5 {[%clk 0:04:36.6]} 16. dxe5 {[%clk 0:04:34.3]} 16... Rxd2
{[%clk 0:04:35.2]} 17. Rfd1 {[%clk 0:04:32.6]} 17... Rfd8 {[%clk 0:04:33.2]} 18.
Rxd2 {[%clk 0:04:31.5]} 18... Rxd2 {[%clk 0:04:32.2]} 19. g4 {[%clk 0:04:30.3]}
19... Kf8 {[%clk 0:04:28.3]} 20. h4 {[%clk 0:04:27.9]} 20... Ke7 {[%clk
0:04:27.4]} 21. e3 {[%clk 0:04:26]} 21... c5 {[%clk 0:04:24.4]} 22. Rc4 {[%clk
0:04:25.9]} 22... Bd5 {[%clk 0:04:21.2]} 23. Rc3 {[%clk 0:04:24.8]} 23... c4
{[%clk 0:04:16.5]} 24. Bf1 {[%clk 0:04:20.3]} 24... b5 {[%clk 0:04:14.7]} 0-1

[Event "Live Chess"]
[Site "Chess.com"]
[Date "2024.06.02"]
[Round "-"]
[White "Queensandpawns"]
[Black "Grace6363"]
[Result "1-0"]
[WhiteElo "2264"]
[BlackElo "1129"]
[TimeControl "300"]
[EndTime "7:36:33 PDT"]
[Termination "Queensandpawns won by resignation"]

1. e4 {[%clk 0:04:59]} 1... c5 {[%clk 0:04:58.5]} 2. d4 {[%clk 0:04:58.2]} 2...
cxd4 {[%clk 0:04:57.5]} 3. c3 {[%clk 0:04:58.1]} 3... dxc3 {[%clk 0:04:56.6]} 4.
Bc4 {[%clk 0:04:58]} 4... Nc6 {[%clk 0:04:56.3]} 5. Qf3 {[%clk 0:04:55.1]} 5...
Ne5 {[%clk 0:04:52.9]} 6. Qxc3 {[%clk 0:04:53.6]} 6... Nxc4 {[%clk 0:04:51.9]}
7. Qxc4 {[%clk 0:04:53.5]} 7... e6 {[%clk 0:04:48.3]} 8. Nf3 {[%clk 0:04:52.9]}
8... d5 {[%clk 0:04:45.9]} 9. exd5 {[%clk 0:04:51.3]} 9... Qxd5 {[%clk
0:04:44.4]} 10. Qe2 {[%clk 0:04:49.5]} 10... Bb4+ {[%clk 0:04:40.4]} 11. Nc3
{[%clk 0:04:47.8]} 11... Nf6 {[%clk 0:04:33.9]} 12. O-O {[%clk 0:04:42.1]} 12...
Bxc3 {[%clk 0:04:32.8]} 13. bxc3 {[%clk 0:04:42]} 13... Bd7 {[%clk 0:04:30.2]}
14. Bg5 {[%clk 0:04:40.6]} 14... O-O {[%clk 0:04:28.6]} 15. Rad1 {[%clk
0:04:40.1]} 15... Qb5 {[%clk 0:04:21.8]} 16. c4 {[%clk 0:04:39.4]} 16... Qa4
{[%clk 0:04:07.2]} 17. Ne5 {[%clk 0:04:35.2]} 17... Be8 {[%clk 0:04:05.3]} 18.
Bxf6 {[%clk 0:04:28.4]} 18... gxf6 {[%clk 0:04:04]} 19. Ng4 {[%clk 0:04:28.3]}
19... f5 {[%clk 0:03:40.2]} 20. Nf6+ {[%clk 0:04:24.7]} 20... Kh8 {[%clk
0:03:38.8]} 21. Qe5 {[%clk 0:04:22.3]} 21... Qc2 {[%clk 0:02:57.9]} 22. Nxe8+
{[%clk 0:04:18.3]} 22... f6 {[%clk 0:02:55.5]} 23. Nxf6 {[%clk 0:04:17.4]} 23...
Rxf6 {[%clk 0:02:47.3]} 24. Qxf6+ {[%clk 0:04:14.2]} 24... Kg8 {[%clk
0:02:46.1]} 25. Qxe6+ {[%clk 0:04:13.3]} 25... Kg7 {[%clk 0:02:44.1]} 26. Rd7+
{[%clk 0:04:11.4]} 1-0

[Event "Live Chess"]
[Site "Chess.com"]
[Date "2024.06.02"]
[Round "-"]
[White "McCarthyStone"]
[Black "TigerTank70"]
[Result "1-0"]
[WhiteElo "2460"]
[BlackElo "2185"]
[TimeControl "300"]
[EndTime "7:36:43 PDT"]
[Termination "McCarthyStone won by resignation"]

1. e4 {[%clk 0:04:55.7]} 1... e5 {[%clk 0:04:58.9]} 2. Nf3 {[%clk 0:04:54.2]}
2... Nc6 {[%clk 0:04:57.7]} 3. Nc3 {[%clk 0:04:53.8]} 3... Bb4 {[%clk
0:04:54.4]} 4. Nd5 {[%clk 0:04:50.5]} 4... d6 {[%clk 0:04:50.6]} 5. Nxb4 {[%clk
0:04:49]} 5... Nxb4 {[%clk 0:04:49.2]} 6. c3 {[%clk 0:04:48.5]} 6... Nc6 {[%clk
0:04:47.3]} 7. d4 {[%clk 0:04:48]} 7... Bg4 {[%clk 0:04:42.9]} 8. d5 {[%clk
0:04:40.2]} 8... Nb8 {[%clk 0:04:40.5]} 9. Be2 {[%clk 0:04:36.6]} 9... Nf6
{[%clk 0:04:31.5]} 10. Be3 {[%clk 0:04:33.7]} 10... c6 {[%clk 0:04:23.4]} 11.
dxc6 {[%clk 0:04:24.9]} 11... bxc6 {[%clk 0:04:21.1]} 12. O-O {[%clk 0:04:24]}
12... O-O {[%clk 0:04:17.4]} 13. Qd2 {[%clk 0:04:20.1]} 13... Nxe4 {[%clk
0:04:08.4]} 14. Qc2 {[%clk 0:04:17.4]} 14... Nf6 {[%clk 0:04:03.4]} 15. Rad1
{[%clk 0:04:15.8]} 15... e4 {[%clk 0:03:57.2]} 16. Nd4 {[%clk 0:04:05.5]} 16...
Bxe2 {[%clk 0:03:53.2]} 17. Qxe2 {[%clk 0:04:04.2]} 17... d5 {[%clk 0:03:51.9]}
18. Nf5 {[%clk 0:03:59.6]} 18... Qc8 {[%clk 0:03:36.8]} 19. Ne7+ {[%clk
0:03:58]} 1-0

[Event "Live Chess"]
[Site "Chess.com"]
[Date "2024.06.02"]
[Round "-"]
[White "NottheBishopSacrifice"]
[Black "dl_chess"]
[Result "1-0"]
[WhiteElo "2331"]
[BlackElo "1198"]
[TimeControl "300"]
[EndTime "7:36:45 PDT"]
[Termination "NottheBishopSacrifice won by resignation"]

1. d4 {[%clk 0:04:57.2]} 1... Nf6 {[%clk 0:04:58.1]} 2. c4 {[%clk 0:04:55.8]}
2... g6 {[%clk 0:04:57.2]} 3. Nf3 {[%clk 0:04:52.9]} 3... Bg7 {[%clk 0:04:56.1]}
4. e3 {[%clk 0:04:51.7]} 4... d6 {[%clk 0:04:54.7]} 5. Be2 {[%clk 0:04:49.8]}
5... O-O {[%clk 0:04:53.2]} 6. O-O {[%clk 0:04:48.3]} 6... Nbd7 {[%clk
0:04:48.7]} 7. Nc3 {[%clk 0:04:47.2]} 7... e5 {[%clk 0:04:46.6]} 8. b3 {[%clk
0:04:45.9]} 8... Ne8 {[%clk 0:04:31.3]} 9. Bb2 {[%clk 0:04:43.7]} 9... f5 {[%clk
0:04:19.2]} 10. dxe5 {[%clk 0:04:40]} 10... Nxe5 {[%clk 0:04:12.1]} 11. Nxe5
{[%clk 0:04:30.3]} 11... Bxe5 {[%clk 0:04:09.4]} 12. Qc2 {[%clk 0:04:29.3]}
12... Nf6 {[%clk 0:03:55.8]} 13. Nd5 {[%clk 0:04:26.9]} 13... Nxd5 {[%clk
0:03:48.1]} 14. cxd5 {[%clk 0:04:24]} 14... Bxb2 {[%clk 0:03:45.6]} 15. Qxb2
{[%clk 0:04:23.9]} 15... Qf6 {[%clk 0:03:42.6]} 16. Qxf6 {[%clk 0:04:21.9]}
16... Rxf6 {[%clk 0:03:41]} 17. Rac1 {[%clk 0:04:21.5]} 17... Rf7 {[%clk
0:03:36.3]} 18. Rc3 {[%clk 0:04:20.8]} 18... Bd7 {[%clk 0:03:32.8]} 19. Rfc1
{[%clk 0:04:20.1]} 19... c6 {[%clk 0:03:26.8]} 20. dxc6 {[%clk 0:04:18.4]} 20...
Bxc6 {[%clk 0:03:25.3]} 21. Bc4 {[%clk 0:04:15.9]} 21... d5 {[%clk 0:03:20.7]}
22. Bf1 {[%clk 0:04:14.6]} 22... Re8 {[%clk 0:03:09.3]} 23. g3 {[%clk 0:04:13]}
23... Rfe7 {[%clk 0:03:06]} 24. Bg2 {[%clk 0:04:10.7]} 24... Kg7 {[%clk
0:03:00.3]} 25. Bf3 {[%clk 0:04:08.4]} 25... h5 {[%clk 0:02:55.5]} 26. h4 {[%clk
0:04:06.4]} 26... Kf6 {[%clk 0:02:53.7]} 27. Kg2 {[%clk 0:04:05.4]} 27... a6
{[%clk 0:02:47.9]} 28. Rc5 {[%clk 0:04:02.4]} 28... Ke5 {[%clk 0:02:44.4]} 29.
Rd1 {[%clk 0:03:59.8]} 29... Rd7 {[%clk 0:02:21.7]} 30. Rd4 {[%clk 0:03:55.4]}
30... Red8 {[%clk 0:02:18.4]} 31. b4 {[%clk 0:03:51.5]} 31... Rd6 {[%clk
0:02:04.1]} 32. Be2 {[%clk 0:03:49.7]} 32... b6 {[%clk 0:01:44.1]} 33. Rc1
{[%clk 0:03:45.3]} 33... b5 {[%clk 0:01:29]} 34. Rc5 {[%clk 0:03:41.9]} 34...
Bb7 {[%clk 0:01:13.2]} 35. Rc7 {[%clk 0:03:39.5]} 35... R8d7 {[%clk 0:01:03.7]}
36. Rc5 {[%clk 0:03:38.9]} 36... Rc6 {[%clk 0:00:57.8]} 37. Rxc6 {[%clk
0:03:30.6]} 37... Bxc6 {[%clk 0:00:56]} 38. Bf3 {[%clk 0:03:30.2]} 38... Rd6
{[%clk 0:00:50.3]} 39. Rd2 {[%clk 0:03:29.4]} 39... Rd7 {[%clk 0:00:48.3]} 40.
Rc2 {[%clk 0:03:28.4]} 40... Rd6 {[%clk 0:00:46.7]} 41. Rc5 {[%clk 0:03:27.3]}
41... Rd7 {[%clk 0:00:44]} 42. Rxc6 {[%clk 0:03:25.6]} 1-0

[Event "Live Chess"]
[Site "Chess.com"]
[Date "2024.06.02"]
[Round "-"]
[White "gobbles19"]
[Black "GoldsmanB"]
[Result "1-0"]
[WhiteElo "2208"]
[BlackElo "1110"]
[TimeControl "300"]
[EndTime "7:36:56 PDT"]
[Termination "gobbles19 won by checkmate"]

1. e4 {[%clk 0:04:58.2]} 1... e6 {[%clk 0:04:59.3]} 2. d4 {[%clk 0:04:57.6]}
2... d5 {[%clk 0:04:58.5]} 3. Nc3 {[%clk 0:04:57.3]} 3... Bb4 {[%clk 0:04:55.3]}
4. e5 {[%clk 0:04:56.7]} 4... c5 {[%clk 0:04:54.2]} 5. Bd2 {[%clk 0:04:56.1]}
5... Bxc3 {[%clk 0:04:52.1]} 6. Bxc3 {[%clk 0:04:54.4]} 6... Ne7 {[%clk
0:04:51.6]} 7. f4 {[%clk 0:04:48.6]} 7... Nf5 {[%clk 0:04:49.6]} 8. Nf3 {[%clk
0:04:47.2]} 8... Qb6 {[%clk 0:04:48.3]} 9. g4 {[%clk 0:04:23.5]} 9... Ne7 {[%clk
0:04:31.8]} 10. Be2 {[%clk 0:04:20]} 10... O-O {[%clk 0:04:30.8]} 11. O-O {[%clk
0:04:17.8]} 11... Nbc6 {[%clk 0:04:28.7]} 12. Kh1 {[%clk 0:04:13.6]} 12... cxd4
{[%clk 0:04:26.9]} 13. Nxd4 {[%clk 0:04:12.5]} 13... Bd7 {[%clk 0:04:21.9]} 14.
Bd3 {[%clk 0:03:58.7]} 14... Nxd4 {[%clk 0:04:19.3]} 15. Bxd4 {[%clk 0:03:57.8]}
15... Qc6 {[%clk 0:04:16]} 16. f5 {[%clk 0:03:51.4]} 16... exf5 {[%clk
0:04:13.8]} 17. gxf5 {[%clk 0:03:51.3]} 17... Qc8 {[%clk 0:04:09.7]} 18. Qf3
{[%clk 0:03:42.7]} 18... Nc6 {[%clk 0:04:00.1]} 19. c3 {[%clk 0:03:32.9]} 19...
Nxd4 {[%clk 0:03:57.9]} 20. cxd4 {[%clk 0:03:32.8]} 20... b6 {[%clk 0:03:54.9]}
21. Rac1 {[%clk 0:03:31.2]} 21... Qe8 {[%clk 0:03:51.8]} 22. Qg3 {[%clk
0:03:22.4]} 22... Rc8 {[%clk 0:03:43.3]} 23. f6 {[%clk 0:03:18.4]} 23... g6
{[%clk 0:03:41]} 24. Qh4 {[%clk 0:03:16.2]} 24... Rxc1 {[%clk 0:03:35.9]} 25.
Rxc1 {[%clk 0:03:16.1]} 25... Qe6 {[%clk 0:03:33.3]} 26. Qh6 {[%clk 0:03:14.1]}
26... Qh3 {[%clk 0:03:27.3]} 27. Qg7# {[%clk 0:03:12]} 1-0

[Event "Live Chess"]
[Site "Chess.com"]
[Date "2024.06.02"]
[Round "-"]
[White "Frankie_Badacsonyi"]
[Black "NAZRIZ1977"]
[Result "0-1"]
[WhiteElo "2377"]
[BlackElo "2076"]
[TimeControl "300"]
[EndTime "7:36:57 PDT"]
[Termination "NAZRIZ1977 won by resignation"]

1. Nf3 {[%clk 0:04:58.7]} 1... c5 {[%clk 0:04:58.3]} 2. g3 {[%clk 0:04:58.2]}
2... g6 {[%clk 0:04:56.9]} 3. Bg2 {[%clk 0:04:57.7]} 3... Bg7 {[%clk 0:04:33.1]}
4. O-O {[%clk 0:04:57.1]} 4... Nf6 {[%clk 0:04:32.2]} 5. c4 {[%clk 0:04:55.9]}
5... O-O {[%clk 0:04:31]} 6. Nc3 {[%clk 0:04:55.5]} 6... d5 {[%clk 0:04:30.1]}
7. cxd5 {[%clk 0:04:53.8]} 7... Nxd5 {[%clk 0:04:29.2]} 8. Nxd5 {[%clk
0:04:52.7]} 8... Qxd5 {[%clk 0:04:28.3]} 9. d3 {[%clk 0:04:52.3]} 9... Qh5
{[%clk 0:04:27.3]} 10. Qc2 {[%clk 0:04:48.9]} 10... Nc6 {[%clk 0:04:25]} 11. a3
{[%clk 0:04:45.8]} 11... Bg4 {[%clk 0:04:14.8]} 12. Be3 {[%clk 0:04:34.1]} 12...
b6 {[%clk 0:04:11.9]} 13. Rab1 {[%clk 0:04:32.8]} 13... Rac8 {[%clk 0:04:10.1]}
14. Qa4 {[%clk 0:04:29.2]} 14... Rc7 {[%clk 0:03:48.7]} 15. b4 {[%clk
0:04:19.2]} 15... Nd4 {[%clk 0:03:39.7]} 16. Bxd4 {[%clk 0:04:17.2]} 16... cxd4
{[%clk 0:03:38.2]} 17. Rfc1 {[%clk 0:04:10.6]} 17... Rfc8 {[%clk 0:03:31.7]} 18.
Qd1 {[%clk 0:03:33.5]} 18... Bxf3 {[%clk 0:03:13.7]} 19. Bxf3 {[%clk 0:03:30.4]}
19... Qe5 {[%clk 0:03:13.1]} 20. Rxc7 {[%clk 0:03:26.1]} 20... Qxc7 {[%clk
0:03:11.7]} 21. Qa4 {[%clk 0:03:17]} 21... Qc2 {[%clk 0:03:03.6]} 22. Qxc2
{[%clk 0:03:07.6]} 22... Rxc2 {[%clk 0:03:02.3]} 23. Kf1 {[%clk 0:02:54.2]}
23... Ra2 {[%clk 0:02:54.1]} 24. Rb3 {[%clk 0:02:51.8]} 24... Kf8 {[%clk
0:02:45.4]} 25. h4 {[%clk 0:02:34.8]} 25... e6 {[%clk 0:02:42.9]} 26. b5 {[%clk
0:02:30.1]} 26... Ke7 {[%clk 0:02:38.1]} 27. Bc6 {[%clk 0:02:29.5]} 27... Kd6
{[%clk 0:02:34.8]} 28. f4 {[%clk 0:02:26.5]} 28... Bf8 {[%clk 0:02:26.1]} 29.
Kf2 {[%clk 0:02:24.5]} 29... e5 {[%clk 0:02:25]} 30. Kf3 {[%clk 0:02:21.3]}
30... Ke6 {[%clk 0:02:15.9]} 31. g4 {[%clk 0:02:20.3]} 31... Rxa3 {[%clk
0:02:06.8]} 32. Rxa3 {[%clk 0:02:17.4]} 32... Bxa3 {[%clk 0:02:06.7]} 33. fxe5
{[%clk 0:02:02.7]} 33... Kxe5 {[%clk 0:02:04.1]} 34. h5 {[%clk 0:01:59.8]} 34...
Kd6 {[%clk 0:02:01.8]} 35. Ke4 {[%clk 0:01:52.3]} 35... Bb2 {[%clk 0:01:48.5]}
36. Be8 {[%clk 0:01:44.6]} 36... Ke7 {[%clk 0:01:43.4]} 37. Bc6 {[%clk
0:01:40.8]} 37... gxh5 {[%clk 0:01:39.9]} 38. gxh5 {[%clk 0:01:39.4]} 38... h6
{[%clk 0:01:39.5]} 39. Kf5 {[%clk 0:01:36.6]} 39... Kd6 {[%clk 0:01:26.2]} 40.
Kf6 {[%clk 0:01:32.9]} 40... a5 {[%clk 0:01:25.7]} 41. Be8 {[%clk 0:01:24.1]}
41... Kc5 {[%clk 0:01:17.3]} 42. Kg7 {[%clk 0:01:22.1]} 42... Bc1 {[%clk
0:01:15.9]} 0-1

[Event "Live Chess"]
[Site "Chess.com"]
[Date "2024.06.02"]
[Round "-"]
[White "blunderabit"]
[Black "Dashman93"]
[Result "0-1"]
[WhiteElo "1776"]
[BlackElo "2149"]
[TimeControl "300"]
[EndTime "7:37:10 PDT"]
[Termination "Dashman93 won by resignation"]

1. e4 {[%clk 0:04:55.1]} 1... e5 {[%clk 0:04:59.2]} 2. Nf3 {[%clk 0:04:52.4]}
2... Nc6 {[%clk 0:04:45.5]} 3. Bb5 {[%clk 0:04:48.6]} 3... Nf6 {[%clk
0:04:42.4]} 4. d3 {[%clk 0:04:44]} 4... Bc5 {[%clk 0:04:41.3]} 5. Bxc6 {[%clk
0:04:42]} 5... dxc6 {[%clk 0:04:38.8]} 6. Nbd2 {[%clk 0:04:32.9]} 6... Bg4
{[%clk 0:04:35.8]} 7. h3 {[%clk 0:04:30.3]} 7... Bh5 {[%clk 0:04:34.5]} 8. g4
{[%clk 0:04:26.1]} 8... Bg6 {[%clk 0:04:33.3]} 9. Nh4 {[%clk 0:04:23.9]} 9...
Qd6 {[%clk 0:04:07.6]} 10. Nb3 {[%clk 0:03:58.2]} 10... Bb6 {[%clk 0:03:56.3]}
11. Nf5 {[%clk 0:03:36.5]} 11... Bxf5 {[%clk 0:03:53.8]} 12. gxf5 {[%clk
0:03:34.5]} 12... O-O-O {[%clk 0:03:52]} 13. a4 {[%clk 0:03:24.7]} 13... Nxe4
{[%clk 0:03:49.7]} 14. O-O {[%clk 0:03:05.5]} 14... Ng3 {[%clk 0:03:37.8]} 15.
Re1 {[%clk 0:02:53.3]} 15... Nxf5 {[%clk 0:03:35.3]} 16. a5 {[%clk 0:02:50.4]}
16... Qg6+ {[%clk 0:03:31.9]} 17. Kh2 {[%clk 0:02:44.7]} 17... Bxf2 {[%clk
0:03:30.1]} 0-1

[Event "Live Chess"]
[Site "Chess.com"]
[Date "2024.06.02"]
[Round "-"]
[White "gmnorfolk"]
[Black "ClassyChameleon"]
[Result "1-0"]
[WhiteElo "2143"]
[BlackElo "1535"]
[TimeControl "300"]
[EndTime "7:37:18 PDT"]
[Termination "gmnorfolk won by resignation"]

1. d4 {[%clk 0:04:57.9]} 1... d5 {[%clk 0:04:50.4]} 2. Nf3 {[%clk 0:04:56.2]}
2... Nf6 {[%clk 0:04:47.4]} 3. Bf4 {[%clk 0:04:01.6]} 3... Bf5 {[%clk
0:04:45.2]} 4. e3 {[%clk 0:04:00]} 4... Nc6 {[%clk 0:04:44.1]} 5. c4 {[%clk
0:03:59.5]} 5... dxc4 {[%clk 0:04:42.5]} 6. Bxc4 {[%clk 0:03:57.4]} 6... e6
{[%clk 0:04:41.9]} 7. Nc3 {[%clk 0:03:56]} 7... Bb4 {[%clk 0:04:40.8]} 8. O-O
{[%clk 0:03:53.9]} 8... O-O {[%clk 0:04:39.7]} 9. h3 {[%clk 0:03:51.6]} 9... a6
{[%clk 0:04:28.4]} 10. a3 {[%clk 0:03:47.2]} 10... Bxc3 {[%clk 0:04:27.3]} 11.
bxc3 {[%clk 0:03:46]} 11... Ne4 {[%clk 0:04:26.8]} 12. Rc1 {[%clk 0:03:43.1]}
12... b5 {[%clk 0:04:12.7]} 13. Bd3 {[%clk 0:03:41.6]} 13... Na5 {[%clk
0:04:10.4]} 14. Qc2 {[%clk 0:03:39.4]} 14... Qd5 {[%clk 0:04:06.2]} 15. Ne5
{[%clk 0:03:31.9]} 15... Nc4 {[%clk 0:04:00.3]} 16. f3 {[%clk 0:03:30.4]} 16...
Ned6 {[%clk 0:03:54.6]} 17. e4 {[%clk 0:03:25.3]} 17... Qb7 {[%clk 0:03:29.9]}
18. exf5 {[%clk 0:03:16.8]} 18... exf5 {[%clk 0:03:28.9]} 19. Nxc4 {[%clk
0:03:14.7]} 19... bxc4 {[%clk 0:03:27.5]} 20. Bxf5 {[%clk 0:03:13.1]} 20... Rfe8
{[%clk 0:03:24.4]} 21. Bxd6 {[%clk 0:03:11.4]} 21... cxd6 {[%clk 0:03:23]} 22.
Rb1 {[%clk 0:03:09]} 22... Qc6 {[%clk 0:03:17.9]} 23. Rfe1 {[%clk 0:03:04]}
23... g6 {[%clk 0:03:12.3]} 24. d5 {[%clk 0:02:59.7]} 24... Qc5+ {[%clk
0:03:09.7]} 25. Kh2 {[%clk 0:02:55.8]} 25... gxf5 {[%clk 0:03:07]} 26. Qxf5
{[%clk 0:02:54.1]} 26... Rxe1 {[%clk 0:03:04.6]} 27. Qg5+ {[%clk 0:02:48.3]}
27... Kf8 {[%clk 0:02:57.4]} 28. Rxe1 {[%clk 0:02:45]} 28... Re8 {[%clk
0:02:53.7]} 29. Qh6+ {[%clk 0:02:43.9]} 1-0